[Event "Turkey IS Bank Super League 2017"]
[Site "Darica-Kocaeli"]
[Date "2017.08.07"]
[Round "13"]
[White "Alper, Metin"]
[Black "Kamer, Kayra"]
[Result "1/2-1/2"]
[ECO "D90"]
[WhiteElo "1947"]
[BlackElo "2062"]
[Annotator "NA RC"]
[PlyCount "74"]
[EventType "team-tourn"]
[EventCountry "TUR"]
[SourceTitle "playchess.com"]
[Source "ChessBase"]
[SourceQuality "1"]
[TimeControl "40/5400+30:1800+30"]

1. d4 {[%emt 0:00:30]} Nf6 {[%emt 0:02:00]} 2. Nf3 {[%emt 0:00:30]} g6 {[%emt 0:00:00]} 3. c4 {[%emt 0:00:30]} Bg7 {[%emt 0:00:00]} 4. Nc3 {[%emt 0:00:00]} d5 {[%emt 0:00:30]} 5. h4 {[%emt 0:02:00] D90: Grünfeld: 4 Nf3 Bg7 sidelines} c6 {[%emt 0:00:30]} (5... O-O 6. cxd5 Nxd5 7. h5 c5 8. hxg6 hxg6 9. Bh6 Bxh6 10. Rxh6 Nxc3 11. bxc3 Kg7 12. Qd2 cxd4 {½-½ (42) Li,C (2735)-Svidler,P (2749) Geneve 2017}) 6. e3 {[%emt 0:03:30]} O-O {[%emt 0:00:30]} 7. Qb3 {[%emt 0:01:30]} Qb6 $146 {[%emt 0:01:30]} ({Find the theoretical novelty and annotate with similar games:} 7... a6 8. cxd5 cxd5 9. h5 Nc6 10. hxg6 hxg6 11. Bd3 b5 12. Ne5 Nxe5 13. dxe5 {1-0 (44) Hughes,T (2295)-Wang,P (2441) Richardson 2011}) 8. Qxb6 {[%emt 0:02:30]} axb6 {[%emt 0:00:00]} 9. cxd5 {[%emt 0:00:30]} cxd5 {[%emt 0:00:00]} 10. h5 {[%emt 0:05:30]} Bf5 {[%emt 0:00:30]} 11. hxg6 {[%emt 0:00:30]} hxg6 {[%emt 0:00:00]} 12. Nh4 {[%emt 0:00:30]} e6 {[%emt 0:00:00]} 13. Nxf5 {[%emt 0:00:30]} exf5 {[%emt 0:00:00]} 14. Be2 {[%emt 0:00:00]} Nc6 {[%emt 0:00:00]} 15. O-O {[%emt 0:00:00]} Rfd8 {[%emt 0:00:30]} 16. Bd2 {[%emt 0:00:30]} Ne4 {[%emt 0:00:30]} 17. Nxe4 {[%emt 0:00:30]} fxe4 {[%emt 0:00:00]} 18. a3 {[%emt 0:00:30]} Na5 {[%emt 0:00:00]} 19. Bxa5 {[%emt 0:00:30]} bxa5 {[%emt 0:00:00]} 20. Rfc1 {[%emt 0:00:30]} Rac8 {[%emt 0:00:00]} 21. Kf1 {[%emt 0:00:30]} Kf8 {[%emt 0:00:30]} 22. Ke1 {[%emt 0:00:30]} Ke7 {[%emt 0:00:30]} 23. Kd2 {[%emt 0:00:30]} f5 {[%emt 0:00:30]} 24. Rxc8 {[%emt 0:00:00]} Rxc8 {[%emt 0:00:00]} 25. Rc1 {[%emt 0:00:00]} Rxc1 {[%emt 0:00:00]} 26. Kxc1 {[%emt 0:00:30]} f4 {[%emt 0:00:30]} 27. Kd2 {[%emt 0:00:00]} fxe3+ {[%emt 0:00:00]} 28. fxe3 {[%emt 0:00:00]} Kd6 {[%emt 0:00:00]} 29. a4 {[%emt 0:00:30]} b6 {[%emt 0:00:00]} 30. b3 {[%emt 0:00:00]} Bf8 {[%emt 0:00:00]} 31. Bb5 {[%emt 0:01:00]} Ke6 {[%emt 0:00:00]} 32. g4 {[%emt 0:00:00]} Bb4+ {[%emt 0:00:00]} 33. Ke2 {[%emt 0:00:00]} Ba3 {[%emt 0:00:30]} 34. Bc6 {[%emt 0:00:30]} Bc1 {[%emt 0:00:30]} 35. Bb7 {[%emt 0:00:00]} g5 {[%emt 0:00:30]} 36. Bc8+ {[%emt 0:00:00]} Kd6 $11 {[%emt 0:00:30]} 37. Bb7 {[%emt 0:00:00]} Ba3 {[%emt 0:00:00]} 1/2-1/2

[Event "Turkey IS Bank Super League 2017"]
[Site "Darica-Kocaeli"]
[Date "2017.08.07"]
[Round "13"]
[White "Celik, Eda"]
[Black "Duran, Esma Doga"]
[Result "0-1"]
[ECO "D30"]
[WhiteElo "1939"]
[BlackElo "1939"]
[Annotator "NA"]
[PlyCount "84"]
[EventType "team-tourn"]
[EventCountry "TUR"]
[SourceTitle "playchess.com"]
[Source "ChessBase"]
[SourceQuality "1"]
[TimeControl "40/5400+30:1800+30"]

1. d4 {[%emt 0:00:30]} d5 {[%emt 0:01:00]} 2. Bf4 {[%emt 0:00:30]} Nf6 {[%emt 0:00:30]} 3. e3 {[%emt 0:00:00]} c6 {[%emt 0:00:30]} 4. c4 {[%emt 0:01:00]} e6 {[%emt 0:00:30]} 5. Nf3 {[%emt 0:00:30]} Bd6 {[%emt 0:02:30]} 6. Bg3 {[%emt 0:02:30]} O-O {[%emt 0:00:30]} 7. Nc3 {[%emt 0:00:30]} Qe7 {[%emt 0:03:30]} 8. Bd3 {[%emt 0:03:30]} Nbd7 {[%emt 0:01:30]} 9. O-O {[%emt 0:04:30]} dxc4 {[%emt 0:03:30]} 10. Bxc4 {[%emt 0:00:30]} Bxg3 {[%emt 0:09:30]} 11. hxg3 {[%emt 0:00:00]} b5 {[%emt 0:01:30]} 12. Be2 {[%emt 0:01:00]} Bb7 {[%emt 0:00:30]} 13. Qc2 {[%emt 0:03:30]} Rac8 {[%emt 0:02:30]} 14. Rfd1 {[%emt 0:03:30]} b4 {[%emt 0:07:30]} 15. Na4 {[%emt 0:18:30]} c5 {[%emt 0:01:30]} 16. dxc5 {[%emt 0:00:30]} Nxc5 {[%emt 0:02:30]} 17. Nxc5 {[%emt 0:01:30]} Rxc5 {[%emt 0:00:30]} 18. Qd2 {[%emt 0:17:30]} Rd5 $11 {[%emt 0:12:30]} 19. Qe1 {[%emt 0:00:30]} a5 {[%emt 0:11:30]} 20. Rac1 {[%emt 0:02:30]} Rfd8 {[%emt 0:02:30]} 21. Nd4 {[%emt 0:04:30]} e5 {[%emt 0:07:30]} 22. Nf5 {[%emt 0:09:30]} Qd7 {[%emt 0:06:30]} 23. Nh4 {[%emt 0:15:01]} e4 {[%emt 0:04:19]} 24. f3 {[%emt 0:02:46]} g5 {[%emt 0:03:14]} 25. fxe4 {[%emt 0:00:15]} Nxe4 {[%emt 0:00:00]} 26. Nf3 {[%emt 0:01:22]} Qd6 {[%emt 0:05:03]} 27. Rxd5 {[%emt 0:03:44]} Bxd5 {[%emt 0:00:30]} 28. Rd1 {[%emt 0:00:30]} Qc7 {[%emt 0:00:30]} 29. Bd3 {[%emt 0:00:30]} g4 {[%emt 0:06:21]} 30. Bxe4 {[%emt 0:02:24]} Bxe4 {[%emt 0:00:00]} 31. Rxd8+ {[%emt 0:01:01]} Qxd8 {[%emt 0:00:03]} 32. Ne5 {[%emt 0:00:30]} Qg5 {[%emt 0:00:30]} 33. Nc4 {[%emt 0:00:30]} Qd5 {[%emt 0:00:30]} 34. Nd2 {[%emt 0:00:30]} Bg6 {[%emt 0:03:54]} 35. b3 {[%emt 0:00:31]} Qe5 {[%emt 0:00:30]} 36. Nc4 {[%emt 0:00:30]} Qd5 {[%emt 0:00:27]} 37. Qe2 {[%emt 0:01:06]} h5 {[%emt 0:00:30]} 38. Nd2 {[%emt 0:00:12]} Qe5 {[%emt 0:00:30]} 39. Nc4 {[%emt 0:00:23]} Qxg3 {[%emt 0:01:22]} 40. Nxa5 {[%emt 0:00:00]} Qh4 {[%emt 0:00:47]} 41. Nc4 {[%emt 0:16:00]} g3 {[%emt 0:01:30]} 42. Qf3 {[%emt 0:05:30]} Bd3 {[%emt 0:01:30]} 0-1

[Event "Turkey IS Bank Super League 2017"]
[Site "Darica-Kocaeli"]
[Date "2017.08.06"]
[Round "13"]
[White "Kargaci, Humeyra"]
[Black "Ozbay, Ece"]
[Result "0-1"]
[ECO "D10"]
[WhiteElo "1737"]
[BlackElo "1970"]
[Annotator "NA"]
[PlyCount "150"]
[EventType "team-tourn"]
[EventCountry "TUR"]
[SourceTitle "playchess.com"]
[Source "ChessBase"]
[SourceQuality "1"]
[TimeControl "40/5400+30:1800+30"]

1. c4 {[%emt 0:00:30]} c6 {[%emt 0:01:00]} 2. Nc3 {[%emt 0:00:30]} Nf6 {[%emt 0:00:30]} 3. g3 {[%emt 0:00:30]} d5 {[%emt 0:00:30]} 4. cxd5 {[%emt 0:00:30]} cxd5 {[%emt 0:00:30]} 5. d4 {[%emt 0:00:00]} Bf5 {[%emt 0:01:30] D10: Slav Defence: 3 cxd5 (without early Nf3) and 3 Nc3} (5... Nc6 6. Bg2 Bf5 7. Nf3 e6 8. O-O Bd6 9. Bf4 O-O 10. Rc1 h6 11. Ne5 Bxe5 12. Bxe5 Ng4 13. Bf4 Qb6 14. e4 dxe4 15. d5 Rad8 16. Na4 Qa5 {0-1 (55) Kiewra,K (2361)-Harikrishna,P (2684) Benasque 2012}) 6. Bg2 {[%emt 0:00:00]} e6 {[%emt 0:00:30]} 7. Qb3 {[%emt 0:01:30]} Qb6 {[%emt 0:02:30]} 8. Qxb6 {[%emt 0:02:30]} axb6 {[%emt 0:05:30]} 9. Nf3 {[%emt 0:00:00]} Nc6 {[%emt 0:01:30]} 10. Bf4 {[%emt 0:01:00]} Bb4 {[%emt 0:04:30]} 11. O-O {[%emt 0:01:30]} Bxc3 {[%emt 0:04:30]} 12. bxc3 {[%emt 0:00:30]} Ra3 $146 {[%emt 0:00:00]} ({Predecessor:} 12... Be4) 13. Rfc1 {[%emt 0:00:30]} Ke7 {[%emt 0:01:00]} 14. c4 {[%emt 0:00:30]} Rha8 {[%emt 0:01:30]} 15. cxd5 {[%emt 0:19:30]} exd5 {[%emt 0:10:30]} 16. Ne5 {[%emt 0:22:30]} Rxa2 {[%emt 0:12:30]} 17. Rxa2 {[%emt 0:00:30]} Rxa2 {[%emt 0:00:00]} 18. Nxc6+ {[%emt 0:00:30]} bxc6 {[%emt 0:00:00]} 19. Rxc6 {[%emt 0:03:30]} Rxe2 {[%emt 0:00:00]} 20. Bf3 {[%emt 0:01:30]} Re1+ {[%emt 0:12:00]} 21. Kg2 {[%emt 0:00:30]} Bd3 {[%emt 0:01:30]} 22. h4 {[%emt 0:03:30]} Ne4 {[%emt 0:18:30]} 23. Bxe4 {[%emt 0:07:30]} dxe4 {[%emt 0:01:30]} 24. Rxb6 {[%emt 0:00:30]} Be2 {[%emt 0:00:30]} 25. Rb3 {[%emt 0:02:30]} Rd1 {[%emt 0:04:13]} 26. Re3 {[%emt 0:06:30]} Bf3+ {[%emt 0:04:59]} 27. Rxf3 {[%emt 0:00:30]} exf3+ {[%emt 0:00:00]} 28. Kxf3 {[%emt 0:00:00]} Rxd4 {[%emt 0:02:21]} 29. Be5 {[%emt 0:00:00]} Rd3+ {[%emt 0:00:00]} 30. Ke4 {[%emt 0:01:30]} Rd2 {[%emt 0:00:51]} 31. Ke3 {[%emt 0:00:30]} Ra2 {[%emt 0:00:30]} 32. Bxg7 {[%emt 0:00:00]} Ke6 33. Kf3 {[%emt 0:10:05]} Ra3+ {[%emt 0:02:06]} 34. Kg2 {[%emt 0:04:17]} h5 {[%emt 0:06:43]} 35. Bd4 {[%emt 0:02:17]} Kf5 {[%emt 0:00:25]} 36. Be3 {[%emt 0:00:22]} Ke4 {[%emt 0:00:35]} 37. Bc5 {[%emt 0:01:26]} Rf3 {[%emt 0:00:30]} 38. Bb6 {[%emt 0:00:30]} Rf6 {[%emt 0:00:30]} 39. Be3 {[%emt 0:00:30]} Kd3 {[%emt 0:00:30]} 40. Bc5 {[%emt 0:00:30]} Rf5 {[%emt 0:03:47]} 41. Be3 {[%emt 0:03:03]} Ke2 {[%emt 0:00:30]} 42. Bb6 {[%emt 0:01:30]} Kd3 {[%emt 0:08:30]} 43. Be3 {[%emt 0:02:30]} Rf6 {[%emt 0:02:34]} 44. Bc5 {[%emt 0:00:30] [#]} Ke2 $1 {[%emt 0:02:22]} 45. Be3 {[%emt 0:00:30]} Ra6 {[%emt 0:00:40]} 46. Bc5 $2 {[%emt 0:00:30]} (46. g4 $1 $11 {and White is okay.}) 46... f6 {[%emt 0:00:57]} (46... Rc6 $19 47. Be3 Rd6) 47. Bd4 {[%emt 0:00:00]} (47. g4 $1 $11 {was the only way to keep the balance.}) 47... Rd6 {[%emt 0:00:19]} 48. Bc5 {[%emt 0:00:00]} Rd1 $2 {[%emt 0:01:14]} (48... Rc6 $19 49. Bd4 f5) 49. Be3 {[%emt 0:00:30] [#]} (49. g4 $1 $15) 49... f5 $1 {[%emt 0:05:09]} 50. Bc5 {[%emt 0:00:30]} Ra1 {[%emt 0:02:58]} 51. Bd6 {[%emt 0:02:30]} Ra4 {[%emt 0:01:43]} 52. Bf4 {[%emt 0:00:00]} Re4 {[%emt 0:01:18]} 53. Bd6 {[%emt 0:00:00]} Rg4 {[%emt 0:00:45]} 54. Bc7 {[%emt 0:00:30]} Rc4 {[%emt 0:00:21]} 55. Bd6 {[%emt 0:00:30]} Rc3 {[%emt 0:00:52]} 56. Be5 {[%emt 0:00:00]} Rc2 {[%emt 0:00:34]} 57. Bf4 {[%emt 0:01:00]} Rb2 {[%emt 0:01:21]} 58. Be5 {[%emt 0:00:30]} Rb3 {[%emt 0:00:47]} 59. Bc7 {[%emt 0:00:00]} Rf3 {[%emt 0:00:43]} 60. Bb6 {[%emt 0:00:00]} f4 {[%emt 0:02:45]} 61. Bc5 {[%emt 0:06:30]} Rc3 {[%emt 0:00:26]} 62. Bd4 {[%emt 0:07:30]} f3+ {[%emt 0:00:32]} 63. Kh2 {[%emt 0:00:30]} Rc2 {[%emt 0:01:29]} 64. Be3 {[%emt 0:02:56]} Rc4 {[%emt 0:00:43]} 65. Kh3 {[%emt 0:02:18]} Rb4 {[%emt 0:01:00]} 66. Kh2 {[%emt 0:00:00]} Rb1 $19 {[%emt 0:00:39]} 67. g4 {[%emt 0:01:05]} Rb4 {[%emt 0:01:30]} 68. g5 {[%emt 0:02:37]} Rxh4+ {[%emt 0:00:11]} 69. Kg1 {[%emt 0:01:33]} Kd1 {[%emt 0:00:51]} 70. g6 {[%emt 0:02:28]} Rg4+ {[%emt 0:00:09]} 71. Kh2 {[%emt 0:00:07]} Rxg6 {[%emt 0:00:13]} 72. Kh3 {[%emt 0:00:00]} Rg4 {[%emt 0:00:47]} 73. Bc5 {[%emt 0:00:00]} Ke2 {[%emt 0:00:22]} 74. Be3 {[%emt 0:00:04]} Rg2 {[%emt 0:00:09]} 75. Kh4 {[%emt 0:00:41]} Rxf2 {[%emt 0:00:09]} 0-1

[Event "Turkey IS Bank Super League 2017"]
[Site "Darica-Kocaeli"]
[Date "2017.08.07"]
[Round "13"]
[White "Aluc, Bulut Evrim"]
[Black "Yurdakul, Didem Nuray"]
[Result "1-0"]
[ECO "A06"]
[WhiteElo "1699"]
[BlackElo "1697"]
[Annotator "NA RC"]
[PlyCount "93"]
[EventType "team-tourn"]
[EventCountry "TUR"]
[SourceTitle "playchess.com"]
[Source "ChessBase"]
[SourceQuality "1"]
[TimeControl "40/5400+30:1800+30"]

1. d4 {[%emt 0:00:30]} d5 {[%emt 0:01:00]} 2. Nf3 {[%emt 0:01:30]} Nf6 {[%emt 0:00:30]} 3. e3 {[%emt 0:08:30]} Bg4 {[%emt 0:04:30]} 4. Be2 {[%emt 0:00:30]} e6 {[%emt 0:01:30]} 5. b3 {[%emt 0:03:30]} c5 {[%emt 0:03:30]} 6. Bb2 {[%emt 0:01:30]} Nc6 {[%emt 0:01:30]} 7. O-O {[%emt 0:06:30]} Bd6 {[%emt 0:02:30]} 8. Nbd2 {[%emt 0:02:30]} O-O {[%emt 0:02:30]} 9. c4 {[%emt 0:06:30]} Rc8 {[%emt 0:07:30]} 10. cxd5 {[%emt 0:02:30]} exd5 {[%emt 0:01:30]} 11. dxc5 {[%emt 0:05:30]} Bxc5 {[%emt 0:00:30]} 12. a3 {[%emt 0:00:00]} a5 {[%emt 0:05:30]} 13. Re1 {[%emt 0:07:00]} Qd6 {[%emt 0:07:30]} 14. Bd3 {[%emt 0:08:30]} Rfe8 {[%emt 0:10:30]} 15. Qb1 {[%emt 0:04:30]} h6 {[%emt 0:02:30]} 16. h3 {[%emt 0:07:30]} Bxf3 {[%emt 0:02:30]} 17. Nxf3 {[%emt 0:00:30]} Ne4 {[%emt 0:00:30]} 18. Nd4 {[%emt 0:04:30]} Qd7 {[%emt 0:17:30]} 19. f3 {[%emt 0:12:25]} Bxd4 {[%emt 0:00:30]} 20. exd4 {[%emt 0:00:43]} Nf6 {[%emt 0:05:30]} 21. Bc3 {[%emt 0:02:30]} Rc7 {[%emt 0:04:07]} 22. b4 {[%emt 0:04:41]} b6 {[%emt 0:04:02]} 23. b5 {[%emt 0:02:51]} Ne7 {[%emt 0:02:49]} 24. Bd2 {[%emt 0:00:29]} Rec8 {[%emt 0:00:43]} 25. Ra2 {[%emt 0:01:18]} Ne8 {[%emt 0:00:38]} 26. a4 {[%emt 0:00:45]} Nd6 {[%emt 0:00:24]} 27. Bf4 {[%emt 0:00:00]} Rc3 {[%emt 0:01:20]} 28. Rae2 {[%emt 0:00:58]} Nef5 {[%emt 0:01:59]} 29. Bxd6 {[%emt 0:00:14]} Nxd6 {[%emt 0:00:57]} 30. Re7 {[%emt 0:00:24]} Qxe7 {[%emt 0:01:30]} 31. Rxe7 {[%emt 0:00:18]} Rc1+ {[%emt 0:00:14]} 32. Qxc1 {[%emt 0:00:30]} Rxc1+ {[%emt 0:00:00]} 33. Kf2 {[%emt 0:00:08]} g6 {[%emt 0:05:50]} 34. Rd7 {[%emt 0:01:03]} Nc4 {[%emt 0:00:33]} 35. Rxd5 {[%emt 0:00:30]} Nb2 {[%emt 0:00:00]} 36. Be4 {[%emt 0:00:26]} Nxa4 {[%emt 0:00:21]} 37. Rd8+ {[%emt 0:00:30]} Kg7 {[%emt 0:00:30]} 38. Rb8 {[%emt 0:00:00]} Rc4 {[%emt 0:02:21]} 39. Ke3 {[%emt 0:01:13]} Rc7 {[%emt 0:01:05]} 40. Bc6 {[%emt 0:00:50]} Re7+ {[%emt 0:00:37]} 41. Kd3 {[%emt 0:06:44]} Kf6 {[%emt 0:01:30]} 42. d5 {[%emt 0:00:30]} Re1 {[%emt 0:05:30]} 43. Kd2 {[%emt 0:00:30]} Rg1 {[%emt 0:02:30]} 44. d6 {[%emt 0:00:30]} Rxg2+ {[%emt 0:00:00]} 45. Ke3 {[%emt 0:00:30]} Nb2 {[%emt 0:00:00]} 46. d7 {[%emt 0:01:30]} Nc4+ {[%emt 0:00:30]} 47. Ke4 {[%emt 0:02:30]} 1-0